bitfinex/quotes_SOLUSD_20240814
["timestamp","ask_amount","ask_price","bid_price","bid_amount"]
[1723621553074,6.8662,145.64,145.6,6.868]
[1723621553393,6.8662,145.64,145.59,17.1712]
[1723621554293,6.8662,145.64,145.6,6.8678]
[1723621554500,6.8659,145.65,145.6,6.8678]
[1723621556014,6.8659,145.65,145.61,6.8676]
[1723621557107,6.8667,145.63,145.59,17.1712]
[1723621557299,6.8667,145.63,145.59,24.0398]
[1723621557699,19.6264,145.64,145.59,24.0398]
[1723621558012,6.8664,145.64,145.59,24.0398]
[1723621558506,6.8659,145.65,145.59,17.1712]
[1723621559272,6.8659,145.65,145.61,6.8676]
[1723621559467,6.8659,145.65,145.59,17.1712]
[1723621559468,6.8669,145.63,145.59,24.0396]
[1723621559671,6.8669,145.63,145.59,17.1712]
[1723621559872,6.8669,145.63,145.59,24.0397]
[1723621560105,6.867,145.63,145.59,24.0397]
[1723621560791,6.867,145.63,145.59,17.1712]
[1723621561683,19.627,145.63,145.59,17.1712]
[1723621562994,19.627,145.63,145.59,24.0397]
[1723621563206,6.8671,145.62,145.59,17.1712]
[1723621563420,1.71710263,145.62,145.55,16.451]
[1723621563627,6.8686,145.6,145.55,23.3211]
[1723621563925,51.8673,145.62,145.57,6.8691]
[1723621564122,51.8673,145.62,145.58,6.8689]
[1723621564513,6.8676,145.61,145.57,6.8694]
[1723621565127,51.8673,145.62,145.57,6.8694]
[1723621566325,51.8673,145.62,145.58,6.869]
[1723621566715,51.8673,145.62,145.57,6.8693]
[1723621567521,6.8676,145.61,145.57,6.8693]
[1723621571833,8.58478824,145.61,145.57,6.8693]
[1723621572040,6.8676,145.61,145.57,6.8693]
[1723621572535,8.58478831,145.61,145.57,6.8693]
[1723621573027,6.8676,145.61,145.57,6.8693]
[1723621573535,51.8673,145.62,145.57,6.8693]
[1723621573717,51.8673,145.62,145.58,6.8689]
[1723621574309,0.12549,145.66,145.59,6.8683]
[1723621574536,13.01098,145.66,145.6,6.8677]
[1723621574837,0.12549,145.65,145.6,6.8677]
[1723621575137,0.25098,145.65,145.6,6.8677]
[1723621575332,0.12549,145.66,145.61,6.8675]
[1723621575637,6.8656,145.66,145.62,6.867]
[1723621577940,6.8656,145.66,145.6,17.1699]
[1723621577941,0.822213,145.68,145.63,12.76]
[1723621578144,0.822213,145.68,145.65,6.8656]
[1723621578330,0.822213,145.68,145.64,6.8661]
[1723621578635,0.822213,145.68,145.62,20.0]
[1723621578636,13.582213,145.68,145.62,20.0]
[1723621578844,13.582213,145.68,145.62,6.8671]
[1723621579039,1.71648222,145.67,145.62,6.8671]
[1723621579242,6.8656,145.66,145.61,15.6769]
[1723621579538,6.8648,145.67,145.62,26.8667]
[1723621579748,13.582213,145.68,145.62,20.0]
[1723621580037,0.822213,145.68,145.65,6.8657]
[1723621580215,0.822213,145.68,145.66,6.8652]
[1723621580843,0.822213,145.68,145.65,6.8656]
[1723621583249,0.822213,145.68,145.66,6.8652]
[1723621583429,0.822213,145.68,145.62,32.76]
[1723621583430,0.822213,145.68,145.67,6.8648]
[1723621583944,0.822213,145.68,145.66,6.8651]
[1723621586044,0.822213,145.68,145.62,32.76]
[1723621587152,0.822213,145.68,145.65,6.8657]
[1723621589328,0.822213,145.68,145.66,6.8652]
[1723621589527,0.822213,145.68,145.67,6.8648]
[1723621591333,0.822213,145.68,145.66,6.8651]
[1723621592049,0.822213,145.68,145.67,6.8648]
[1723621593523,0.822213,145.68,145.67,26.8648]
[1723621595540,0.822213,145.68,145.67,43.3443]
[1723621600728,0.822213,145.68,145.67,88.59528]
[1723621600950,0.822213,145.68,145.67,88.84626]
[1723621601449,0.822213,145.68,145.67,43.84626]
[1723621601652,0.822213,145.68,145.67,88.72077]
[1723621602145,0.822213,145.68,145.67,88.84626]
[1723621605459,0.822213,145.68,145.67,101.60626]
[1723621608359,6.2874,145.78,145.74,6.8611]
[1723621608663,13.1472,145.78,145.74,6.8611]
[1723621608865,25.9072,145.78,145.73,6.8618]
[1723621609353,6.8601,145.77,145.72,6.8623]
[1723621609746,19.0474,145.78,145.69,6.45359]
[1723621609747,6.8606,145.76,145.71,6.8627]
[1723621610144,6.8611,145.75,145.71,6.8627]
[1723621610366,6.8607,145.76,145.71,6.8627]
[1723621610664,6.8607,145.76,145.72,6.8624]
[1723621610864,6.8612,145.75,145.71,6.8626]
[1723621611039,6.8611,145.75,145.68,0.12549]
[1723621611242,6.8611,145.75,145.68,20.25098]
[1723621611936,6.8611,145.75,145.62,12.76]
[1723621611937,19.6226,145.72,145.62,12.76]
[1723621612469,6.8631,145.71,145.67,6.8647]
[1723621612651,6.8631,145.71,145.62,12.76]
[1723621612851,6.8631,145.71,145.66,6.8652]
[1723621613157,6.8631,145.71,145.62,12.76]
[1723621613362,19.6224,145.72,145.68,6.8643]
[1723621613661,19.6224,145.72,145.67,6.8647]
[1723621614078,6.8629,145.71,145.67,6.8647]
[1723621615346,6.8635,145.7,145.63,0.12549]
[1723621615548,12.76,145.7,145.63,20.0]
[1723621616242,19.6235,145.7,145.65,6.8656]
[1723621617774,8.58021857,145.69,145.64,6.8661]
[1723621618849,8.58021857,145.69,145.65,6.8657]
[1723621619043,6.864,145.69,145.65,6.8657]
[1723621619267,19.6235,145.7,145.65,6.8657]
[1723621619746,6.8635,145.7,145.66,6.865]
[1723621621174,6.8638,145.69,145.65,6.8656]
[1723621622761,6.8635,145.7,145.65,6.8656]
[1723621623085,6.8635,145.7,145.66,6.865]
[1723621623378,17.28089,145.73,145.67,6.8647]
[1723621623379,6.8625,145.72,145.67,6.8647]
[1723621623956,6.8629,145.71,145.67,6.8647]
[1723621624259,6.8626,145.72,145.67,6.8647]
[1723621624856,6.8626,145.72,145.68,6.8641]
[1723621626853,6.8621,145.73,145.68,6.8641]
[1723621627955,6.8626,145.72,145.68,6.8641]
[1723621631689,6.8621,145.73,145.68,6.8641]
[1723621631850,23.4676,145.74,145.7,6.8631]
[1723621632052,17.1512,145.77,145.71,6.8628]
[1723621632053,6.8611,145.75,145.71,6.8628]
[1723621632285,6.8611,145.75,145.68,12.76]
[1723621632577,6.8611,145.75,145.7,6.8632]
[1723621634589,6.8611,145.75,145.71,6.8627]
[1723621634769,6.8611,145.75,145.7,6.8633]
[1723621635167,28.4838,145.77,145.68,12.76]
[1723621635873,28.4838,145.77,145.68,8.97]
[1723621636254,46.71556736,145.76,145.68,8.97]
[1723621636456,46.71556736,145.76,145.67,0.12549]
[1723621636657,46.71556736,145.76,145.67,20.37647]
[1723621638385,45.0,145.76,145.67,20.37647]
[1723621640179,45.0,145.76,145.68,12.76]
[1723621642389,45.0,145.76,145.67,20.37647]
[1723621642694,45.0,145.76,145.67,33.13647]
[1723621643277,45.0,145.76,145.67,32.88549]
[1723621645065,15.7238,145.77,145.68,0.12549]
[1723621645292,15.7238,145.77,145.69,12.76]
[1723621645458,15.7238,145.77,145.7,20.0]
[1723621647717,28.4838,145.77,145.7,20.0]
[1723621647895,28.4838,145.77,145.68,0.12549]
[1723621648217,28.4838,145.77,145.68,0.37647]
[1723621648418,28.4838,145.77,145.69,12.76]
[1723621648615,28.4838,145.77,145.7,20.0]
[1723621650416,15.7238,145.77,145.7,20.0]
[1723621651713,15.7238,145.77,145.71,12.76]
[1723621652588,15.7238,145.77,145.72,20.25098]
[1723621652920,15.2944,145.8,145.72,20.25098]
[1723621653699,1.7150196,145.79,145.72,20.25098]
[1723621653887,15.2944,145.8,145.72,20.25098]
[1723621654216,1.71502451,145.79,145.72,20.25098]
[1723621654517,1.71503232,145.79,145.72,20.25098]
[1723621655013,1.71502612,145.78,145.72,20.0]
[1723621655222,1.71502612,145.78,145.7,20.25098]
[1723621655426,15.2944,145.8,145.71,12.88549]
[1723621655622,15.2944,145.8,145.72,20.12549]
[1723621657402,1.71502155,145.79,145.72,20.12549]
[1723621657800,15.2944,145.8,145.72,0.12549]
[1723621658001,15.2944,145.8,145.72,20.12549]
[1723621660305,1.7150232,145.8,145.72,20.12549]
[1723621660506,13.582213,145.83,145.73,12.88549]
[1723621660721,45.0,145.82,145.74,19.5]
[1723621661314,14.47489885,145.81,145.74,19.5]
[1723621661498,12.76,145.79,145.7,35.02548]
[1723621661687,12.76,145.79,145.71,0.12549]
[1723621663222,12.76,145.79,145.71,0.25098]
[1723621663423,12.76,145.79,145.71,20.25098]
[1723621663727,15.4345,145.8,145.72,12.76]
[1723621663933,15.4345,145.8,145.73,20.0]
[1723621664117,0.822213,145.83,145.75,6.247]
[1723621664319,13.582213,145.83,145.75,6.247]
[1723621665325,13.582213,145.83,145.75,5.747]
[1723621665529,6.858,145.82,145.78,6.8595]
[1723621665700,6.8588,145.8,145.76,6.8603]
[1723621666224,6.8584,145.81,145.77,6.8601]
[1723621666632,1.71485956,145.8,145.77,6.8601]
[1723621666799,6.8584,145.81,145.77,6.8601]
[1723621667002,6.8584,145.81,145.76,6.8604]
[1723621667395,6.8588,145.8,145.76,6.8604]
[1723621668599,13.582213,145.83,145.77,6.8599]
[1723621668600,6.8584,145.81,145.77,6.8599]
[1723621670829,12.76,145.79,145.73,20.0]
[1723621671009,12.76,145.79,145.7,15.9549]
[1723621671010,6.8602,145.77,145.71,20.0]
[1723621671324,6.8602,145.77,145.73,6.8619]
[1723621671623,6.8602,145.77,145.72,6.8623]
[1723621671998,6.8597,145.78,145.71,20.0]
[1723621672203,6.8597,145.78,145.74,6.8614]
[1723621672626,6.8597,145.78,145.73,6.8618]
[1723621673629,1.71530451,145.77,145.73,6.8618]
[1723621674220,8.57540451,145.77,145.72,6.8623]
[1723621674403,51.8601,145.77,145.72,6.8623]
[1723621675339,19.6211,145.75,145.67,15.331]
[1723621676033,19.6211,145.75,145.7,6.8632]
[1723621676243,19.6211,145.75,145.67,15.331]
[1723621676244,1.7156673,145.74,145.67,15.331]
[1723621676550,51.8616,145.74,145.7,6.3634]
[1723621676910,45.0,145.74,145.68,6.8642]
[1723621677131,6.8629,145.71,145.67,6.8647]
[1723621677340,1.7160215,145.7,145.67,6.8647]
[1723621678222,1.71598606,145.71,145.68,6.8642]
[1723621678518,1.71598077,145.7,145.63,16.6096]
[1723621678722,8.57978077,145.7,145.65,6.8654]
[1723621679128,6.8639,145.69,145.65,6.8654]
[1723621679635,24.00238077,145.7,145.65,6.8654]
[1723621679936,24.00238077,145.7,145.66,6.8652]
[1723621680451,22.2864,145.7,145.66,6.8652]
[1723621680804,15.4229,145.7,145.66,6.3652]
[1723621681314,15.4229,145.7,145.67,6.8647]
[1723621681730,15.4229,145.7,145.63,12.76]
[1723621681731,22.2864,145.7,145.66,6.8652]
[1723621682115,15.4229,145.7,145.66,6.8652]
[1723621682541,15.4229,145.7,145.67,6.8648]
[1723621682723,17.13901376,145.7,145.67,6.8648]
[1723621683318,15.4229,145.7,145.67,6.8648]
[1723621683938,22.2864,145.7,145.66,6.8652]
[1723621684231,1.71610792,145.69,145.66,6.8652]
[1723621684439,1.71610792,145.69,145.63,12.76]
[1723621684643,15.4229,145.7,145.64,20.0]
[1723621685028,28.1829,145.7,145.64,20.0]
[1723621685217,6.8643,145.69,145.64,6.8658]
[1723621685416,6.8643,145.69,145.65,6.8656]
[1723621685635,35.0464,145.7,145.66,6.8651]
[1723621686147,35.0463,145.7,145.66,6.8651]
[1723621686518,28.1829,145.7,145.67,6.8647]
[1723621686843,28.1829,145.7,145.62,20.0]
[1723621686844,15.4229,145.7,145.68,6.864]
[1723621687042,23.2126,145.74,145.7,6.863]
[1723621687743,24.9282572,145.74,145.7,6.863]
[1723621688556,16.3511,145.74,145.71,6.8628]
[1723621688745,6.8611,145.75,145.71,6.8628]
[1723621688920,6.8611,145.75,145.67,12.76]
[1723621688921,6.8611,145.75,145.7,6.8633]
[1723621689127,1.71561916,145.74,145.7,6.8633]
[1723621689739,6.8611,145.75,145.7,6.8633]
[1723621690225,6.8616,145.74,145.7,6.8633]
[1723621690651,6.8616,145.74,145.69,6.8635]
[1723621691227,6.862,145.73,145.69,6.8635]
[1723621691573,6.862,145.73,145.62,47.17441178]
[1723621691574,6.863,145.71,145.67,6.8646]
[1723621691728,19.3399,145.73,145.67,6.8646]
[1723621691729,6.8627,145.72,145.67,6.8646]
[1723621692069,13.442,145.73,145.68,6.8641]
[1723621692232,29.913,145.75,145.67,12.76]
[1723621692233,6.8616,145.74,145.67,12.76]
[1723621693854,6.8616,145.74,145.7,6.863]
[1723621695732,35.9125,145.77,145.71,6.8628]
[1723621695733,6.861,145.75,145.71,6.8628]
[1723621696045,6.861,145.75,145.7,6.8633]
[1723621696746,19.6223,145.73,145.68,6.8642]
[1723621696936,12.76,145.73,145.63,29.3058]
[1723621697271,12.76,145.73,145.69,6.8638]
[1723621697439,6.8616,145.74,145.69,6.8638]
[1723621697759,6.8621,145.73,145.68,6.8642]
[1723621700150,6.8621,145.73,145.69,6.8637]
[1723621700451,6.8618,145.74,145.69,6.8638]
[1723621700650,12.76,145.75,145.69,6.8638]
[1723621700651,6.862,145.73,145.69,6.8638]
[1723621702169,1.71579214,145.72,145.64,20.0]
[1723621702475,6.8632,145.71,145.67,6.8648]
[1723621703073,1.71579214,145.72,145.67,6.8648]
[1723621703382,8.57829214,145.72,145.67,6.8648]
[1723621704873,6.8625,145.72,145.68,6.8642]
[1723621705559,19.622,145.73,145.69,6.8638]
[1723621705761,1.71595686,145.72,145.68,6.8642]
[1723621706268,8.57845686,145.72,145.68,6.8642]
[1723621706449,1.71595686,145.72,145.68,6.8642]
[1723621707572,51.8626,145.72,145.67,6.8646]
[1723621707744,1.71598042,145.71,145.67,6.8646]
[1723621707951,1.7160568,145.7,145.67,6.8646]
[1723621708882,1.71605095,145.71,145.67,6.8646]
[1723621709072,1.71604223,145.7,145.67,6.8646]
[1723621710055,1.71604223,145.71,145.67,6.8646]
[1723621710255,1.71604958,145.7,145.68,6.8643]
[1723621711256,1.71606554,145.71,145.68,6.8643]
[1723621711456,1.71606554,145.7,145.68,6.8643]
[1723621712354,1.71606554,145.71,145.68,6.8643]
[1723621712680,1.7160652,145.7,145.67,6.8646]
[1723621713979,1.71610933,145.71,145.67,6.8646]
[1723621714176,60.3565,145.72,145.69,6.8638]
[1723621714386,15.3565,145.72,145.69,6.8638]
[1723621714694,1.7159855,145.71,145.68,6.8642]
[1723621716085,1.71599312,145.7,145.68,6.8642]
[1723621717079,1.71603319,145.71,145.67,6.8647]
[1723621717296,1.71608502,145.7,145.67,6.8647]
[1723621718357,1.71608471,145.71,145.67,6.8647]
[1723621718580,1.71608685,145.7,145.67,6.8647]
[1723621719481,1.71608709,145.71,145.67,6.8647]
[1723621719677,1.71608879,145.7,145.67,6.8647]
[1723621726172,6.8629,145.71,145.67,6.8647]
[1723621727391,1.71610931,145.7,145.67,6.8647]
[1723621732777,8.57960931,145.7,145.66,6.8652]
[1723621732970,1.71621547,145.69,145.66,6.8652]
[1723621736110,21.9644,145.72,145.67,6.8647]
[1723621736308,21.9644,145.72,145.64,20.0]
[1723621737506,28.8271,145.72,145.68,6.8641]
[1723621738009,8.57899922,145.71,145.67,6.8646]
[1723621738223,1.71610626,145.7,145.67,6.8646]
[1723621738706,6.8629,145.71,145.67,6.8646]
[1723621740187,1.71610426,145.7,145.67,6.8646]
[1723621740399,1.71610563,145.69,145.64,20.0]
[1723621740587,8.58030563,145.69,145.63,20.0]
[1723621740803,51.8645,145.68,145.64,6.8661]
[1723621741987,1.71657979,145.67,145.63,6.8666]
[1723621742605,22.6132,145.67,145.62,6.867]
[1723621742808,6.8657,145.65,145.61,6.8676]
[1723621742991,6.8657,145.65,145.57,19.9366974]
[1723621742992,1.71683298,145.64,145.6,6.8679]
[1723621743190,8.58333298,145.64,145.6,6.8679]
[1723621743514,8.58333298,145.64,145.55,6.4189]
[1723621743708,1.71683298,145.64,145.6,6.8677]
[1723621743907,1.71683298,145.64,145.55,19.1789]
[1723621743908,19.6258,145.65,145.55,19.1789]
[1723621744099,1.71691346,145.64,145.55,19.1789]
[1723621744488,1.71691346,145.64,145.6,6.868]
[1723621744988,45.0,145.66,145.57,12.76]
[1723621745313,45.0,145.66,145.62,6.8671]
[1723621745516,51.8653,145.66,145.62,6.8671]
[1723621745685,51.8653,145.66,145.61,6.8675]
[1723621746015,19.6258,145.65,145.6,6.8679]
[1723621746218,1.71691674,145.64,145.6,6.8679]
[1723621746798,1.71691674,145.64,145.61,6.8675]
[1723621747115,12.76,145.65,145.61,6.8675]
[1723621748817,51.8653,145.66,145.62,6.8671]
[1723621749019,45.0,145.66,145.58,20.0]
[1723621749190,45.0,145.66,145.63,6.8666]
[1723621749389,22.0126,145.67,145.63,6.8666]
[1723621749903,30.59404076,145.67,145.63,6.8666]
[1723621752421,28.8775,145.67,145.63,6.8666]
[1723621752828,30.59404182,145.67,145.63,6.8666]
[1723621753029,6.8642,145.69,145.61,12.88549]
[1723621753329,6.8645,145.68,145.63,6.8666]
[1723621753510,6.8649,145.67,145.63,6.8666]
[1723621755018,6.8645,145.68,145.63,6.8666]
[1723621755413,16.367,145.71,145.62,20.0]
[1723621755727,16.367,145.71,145.67,6.8648]
[1723621755728,23.2302,145.71,145.67,6.8648]
[1723621756518,16.367,145.71,145.68,6.8642]
[1723621757130,16.367,145.71,145.62,20.0]
[1723621757131,29.127,145.71,145.62,20.0]
[1723621757314,6.8639,145.69,145.65,6.8654]
[1723621757733,29.127,145.71,145.66,6.8652]
[1723621757734,35.9901,145.71,145.66,6.8652]
[1723621759709,35.9901,145.71,145.67,6.8646]
[1723621761308,16.367,145.71,145.67,6.8646]
[1723621761811,6.8626,145.72,145.67,6.8646]
[1723621762009,6.8626,145.72,145.68,6.8643]
[1723621763434,6.863,145.71,145.67,6.8647]
[1723621764631,1.71619915,145.7,145.62,12.88549]
[1723621764812,1.71619915,145.7,145.63,20.0]
[1723621765008,12.76,145.72,145.63,20.0]
[1723621766836,19.6225,145.72,145.68,6.864]
[1723621767534,6.8621,145.73,145.68,6.864]
[1723621767843,6.8621,145.73,145.69,6.8637]
[1723621768133,22.52,145.74,145.65,0.12549]
[1723621768322,15.6583,145.74,145.71,6.8624]
[1723621769405,15.6583,145.74,145.7,6.8632]
[1723621769606,22.5199,145.74,145.7,6.8632]
[1723621770417,22.5199,145.74,145.69,6.8637]
[1723621770644,6.8622,145.73,145.68,6.8642]
[1723621771345,6.8622,145.73,145.69,6.8638]
[1723621772408,35.2799,145.74,145.69,6.8638]
[1723621773743,6.862,145.73,145.69,6.8638]
[1723621774318,35.2799,145.74,145.69,6.8638]
[1723621777750,35.2799,145.74,145.66,12.76]
[1723621777751,35.2799,145.74,145.7,6.8633]
[1723621778436,15.6583,145.74,145.71,6.8629]
[1723621779136,12.76,145.72,145.62,2.7640077]
[1723621779350,6.8639,145.69,145.61,23.0761]
[1723621779515,19.6235,145.7,145.61,23.0761]
[1723621779941,6.864,145.69,145.65,6.8657]
[1723621780137,1.71638509,145.68,145.65,6.8657]
[1723621780621,19.6235,145.7,145.66,6.8652]
[1723621780821,19.6235,145.7,145.65,6.8656]
[1723621781651,19.6235,145.7,145.66,6.8652]
[1723621783220,1.71634307,145.69,145.65,6.8657]
[1723621783935,6.8638,145.69,145.65,6.8657]
[1723621784630,19.6235,145.7,145.65,6.8657]
[1723621784942,45.0,145.69,145.65,6.8657]
[1723621785140,19.6235,145.7,145.61,23.0761]
[1723621785354,6.98849,145.71,145.67,6.8647]
[1723621785553,12.76,145.72,145.67,6.8647]
[1723621785554,19.6226,145.72,145.67,6.8647]
[1723621785859,45.0,145.71,145.67,6.8647]
[1723621786637,51.8629,145.71,145.67,6.8647]
[1723621789162,45.0,145.71,145.67,6.8647]
[1723621789332,57.76,145.71,145.67,6.8647]
[1723621789749,64.6231,145.71,145.67,6.8647]
[1723621790837,19.6231,145.71,145.67,6.8647]
[1723621791041,6.8625,145.72,145.68,6.8643]
[1723621795462,6.8629,145.71,145.67,6.8646]
[1723621800276,1.71598257,145.7,145.62,12.76]
[1723621800569,6.8646,145.68,145.64,6.8658]
[1723621800872,12.76,145.69,145.65,6.8657]
[1723621800873,19.6239,145.69,145.65,6.8657]
[1723621801048,6.8635,145.7,145.66,6.8651]
[1723621801869,19.623,145.71,145.67,6.8647]
[1723621802058,66.6983,145.74,145.64,12.76]
[1723621802059,15.6583,145.74,145.64,12.76]
[1723621802239,22.5202,145.74,145.69,6.8635]
[1723621802439,19.1784,145.75,145.7,6.863]
[1723621802440,6.8612,145.75,145.7,6.863]
[1723621802751,51.04,145.81,145.66,12.76]
[1723621802752,6.8606,145.76,145.72,6.8623]
[1723621802940,6.8606,145.76,145.71,6.8628]
[1723621803247,28.2209,145.77,145.71,6.8628]
[1723621803248,6.861,145.75,145.71,6.8628]
[1723621803451,6.8615,145.74,145.7,6.8632]
[1723621803867,6.8611,145.75,145.7,6.8632]
[1723621804164,6.8611,145.75,145.71,6.8627]
[1723621804480,6.8611,145.75,145.7,6.8633]
[1723621805178,6.8611,145.75,145.71,6.8628]
[1723621806279,1.71557014,145.74,145.7,6.8632]
[1723621806580,6.8611,145.75,145.7,6.8632]
[1723621807452,1.71558095,145.74,145.7,6.8632]
[1723621807751,6.8611,145.75,145.7,6.8632]
[1723621808180,1.71576351,145.74,145.66,22.3081]
[1723621808494,6.8615,145.74,145.67,20.0]
[1723621809900,6.8615,145.74,145.7,6.8633]
[1723621813590,6.8615,145.74,145.69,6.8637]
[1723621813801,6.8616,145.74,145.69,6.8637]
[1723621814089,12.76,145.75,145.7,6.8633]
[1723621814264,35.081,145.77,145.72,6.862]
[1723621814465,45.0,145.76,145.72,6.862]
[1723621814670,51.8607,145.76,145.72,6.862]
[1723621814870,6.8607,145.76,145.72,6.862]
[1723621815996,22.3211,145.77,145.72,6.862]
[1723621816496,19.6197,145.78,145.73,6.8619]
[1723621816865,6.8602,145.77,145.73,6.8619]
[1723621817104,6.8602,145.77,145.72,6.8623]
[1723621817394,6.8606,145.76,145.72,6.8623]
[1723621817569,8.57607778,145.76,145.72,6.8623]
[1723621817893,6.8606,145.76,145.72,6.8623]
[1723621818680,6.8612,145.75,145.71,6.8628]
[1723621821398,6.8607,145.76,145.71,6.8628]
[1723621821584,6.8611,145.75,145.7,6.8632]
[1723621822581,6.8611,145.75,145.71,6.8628]
[1723621824868,6.8611,145.75,145.7,6.8632]
[1723621825095,8.57735173,145.74,145.67,20.12549]
[1723621825405,8.57735173,145.74,145.69,6.8638]
[1723621825586,6.8618,145.74,145.7,6.8633]
[1723621827577,8.57748195,145.74,145.7,6.8633]
[1723621828805,1.71568195,145.74,145.7,6.8633]
[1723621829110,19.6212,145.75,145.7,6.8633]
[1723621829309,19.6212,145.75,145.71,6.8628]
[1723621830010,19.6212,145.75,145.7,6.8632]
[1723621831391,19.6212,145.75,145.71,6.8629]
[1723621838416,21.884,145.76,145.72,6.8623]
[1723621840413,6.8616,145.74,145.7,6.8632]
[1723621840915,6.8611,145.75,145.71,6.8629]
[1723621841217,6.8611,145.75,145.67,20.0]
[1723621841218,21.884,145.76,145.72,6.8623]
[1723621842415,6.8601,145.77,145.73,6.8618]
[1723621844013,6.8607,145.76,145.72,6.8623]
[1723621844997,8.57608,145.76,145.72,6.8623]
[1723621845398,6.8607,145.76,145.72,6.8623]
[1723621847329,8.57608004,145.76,145.72,6.8623]
[1723621847905,6.8607,145.76,145.72,6.8623]
[1723621849528,8.57604713,145.76,145.72,6.8623]
[1723621850316,6.8607,145.76,145.72,6.8623]
[1723621851331,6.8607,145.76,145.71,6.8627]
[1723621852928,12.76,145.77,145.71,6.8627]
[1723621853130,6.861,145.75,145.71,6.8627]
[1723621853514,6.861,145.75,145.68,12.76]
[1723621853515,6.8616,145.74,145.7,6.8631]
[1723621853728,6.8611,145.75,145.71,6.8629]
[1723621854416,6.8611,145.75,145.71,6.3629]
[1723621854924,6.8592,145.79,145.75,6.8608]
[1723621856003,6.8587,145.8,145.76,6.8605]
[1723621857241,19.22535429,145.81,145.73,12.76]
[1723621857440,6.8583,145.81,145.74,65.50196]
[1723621857812,19.22397523,145.81,145.74,65.50196]
[1723621858927,6.8583,145.81,145.77,6.8601]
[1723621860019,40.05064108,145.82,145.77,6.8601]
[1723621860235,6.8584,145.81,145.76,6.8604]
[1723621860414,40.05094108,145.82,145.77,6.8601]
[1723621860743,6.8583,145.81,145.77,6.8601]
[1723621861236,6.8581,145.82,145.77,6.8601]
[1723621862421,6.8581,145.82,145.78,6.8596]
[1723621862942,0.822213,145.83,145.77,12.76]
[1723621863144,7.679513,145.83,145.79,6.859]
[1723621864115,6.8578,145.82,145.78,6.8595]
[1723621865148,7.679613,145.83,145.78,6.8595]
[1723621865848,6.8582,145.81,145.77,6.8599]
[1723621866546,6.8579,145.82,145.77,6.8599]
[1723621866736,7.679513,145.83,145.75,12.76]
[1723621866939,7.679513,145.83,145.79,6.859]
[1723621867236,9.394074,145.83,145.76,0.12549]
[1723621867459,6.8581,145.82,145.77,6.8599]
[1723621869243,6.8583,145.81,145.77,6.8599]
[1723621869446,6.8578,145.82,145.77,6.8599]
[1723621871246,6.8578,145.82,145.78,6.8594]
[1723621872657,7.679613,145.83,145.78,6.8594]
[1723621875343,6.8578,145.82,145.78,6.8594]
[1723621877024,0.822213,145.83,145.75,12.76]
[1723621877025,0.822213,145.83,145.79,6.8591]
[1723621878538,7.679413,145.83,145.79,6.8591]
[1723621879543,6.8579,145.82,145.78,6.8595]
[1723621879728,0.822213,145.83,145.78,6.8595]
[1723621879936,7.679613,145.83,145.78,6.8595]
[1723621880235,7.679613,145.83,145.79,6.8591]
[1723621880760,6.8578,145.82,145.78,6.8595]
[1723621883053,7.679513,145.83,145.79,6.8591]
[1723621887957,6.8579,145.82,145.78,6.8595]
[1723621888167,6.8579,145.82,145.77,6.8598]
[1723621892150,6.8579,145.82,145.78,6.8595]